{"text_format":"1","workbook":"xlsx","n_sheets":1,"sheets":["RRCM"],"not_rendered":{"charts":0,"images":3,"macros":0,"external_links":0,"defined_names":0,"comments":0,"pivot_tables":0},"unopened":[],"bounds":{"document_bytes":16777216,"sheet_cells":100000,"rows_first":2000,"rows_last":500,"rows_between":2000,"halvings":0,"cell_chars":16384,"cell_head_chars":4096},"cells_cut":0,"cells_raw":0,"read":"whole","date_system":"1900"}

{"sheet":"RRCM","index":0,"n_rows":119,"n_cols":31,"rows_kept":119,"cut":false,"hidden":false,"merged":[[7,10,7,62],[2,10,2,62],[3,10,3,62],[4,10,4,62],[5,10,5,62],[6,10,6,62],[16,10,16,62],[9,14,9,25],[9,27,9,53],[10,14,10,25],[10,27,10,53],[11,14,11,25],[11,27,11,53],[12,14,12,25],[12,27,12,53],[13,14,13,25],[13,27,13,53],[15,10,15,62],[28,10,28,20],[28,21,28,62],[17,10,17,62],[18,10,18,62],[19,10,19,62],[20,10,20,62],[22,10,22,62],[23,10,23,20],[23,21,23,62],[24,10,24,20],[24,21,24,62],[26,10,26,62],[27,10,27,20],[27,21,27,62],[29,10,29,20],[29,21,29,62],[30,10,30,20],[30,21,30,62],[31,10,31,20],[31,21,31,62],[32,10,32,20],[32,21,32,62],[33,10,33,20],[33,21,33,62],[34,10,34,20],[34,21,34,62],[35,10,35,20],[35,21,35,62],[36,10,36,20],[36,21,36,62],[37,10,37,20],[37,21,37,62],[38,10,38,20],[38,21,38,62],[39,10,39,20],[39,21,39,62],[40,10,40,20],[40,21,40,62],[44,10,44,20],[44,21,44,62],[41,10,41,20],[41,21,41,62],[42,10,42,20],[42,21,42,62],[43,10,43,20],[43,21,43,62]]}
[]
[]
[null,null,null,null,null,null,null,null,null,null,"BIENVENUE DANS LE RR CERTIFICATION MASTER"]
[null,null,null,null,null,null,null,null,null,null,"Le Test de Certification GPRO n'est pas primordial, mais il fait partie de l'univers du jeu et démontre un investissement particulier de la part de ceux qui l'obtiennent. De plus, quand"]
[null,null,null,null,null,null,null,null,null,null,"il est obtenu lors d'une des trois premières tentatives, et sans avoir disputé plus de 17 courses GPRO, il donne droit à un petit bonus financier (3M$ à la première tentative, 2M$ à la"]
[null,null,null,null,null,null,null,null,null,null,"seconde, 1M$ à la troisième). Mais même quand il n'y a plus de bonus à la clef (et que le Test devient payant…), il peut être intéressant de le passer, car c'est un gage de sérieux."]
[null,null,null,null,null,null,null,null,null,null,"Le Test se compose de 25 questions à choix multiples, auxquelles il te faudra répondre en 60 minutes. Pour réussir le Test de Certification, il te faudra avoir validé tes réponses"]
[null,null,null,null,null,null,null,null,null,null,"dans le temps imparti, et obtenir un minimum de 23 bonnes réponses. Ces réponses peuvent être retrouvées sur divers médias liés à GPRO :"]
[]
[null,null,null,null,null,null,null,null,null,null,null,null,null,"●","Règles du jeu GPRO",null,null,null,null,null,null,null,null,null,null,null,null,"<<< clique sur ce lien pour accéder à la page des règles du jeu GPRO"]
[null,null,null,null,null,null,null,null,null,null,null,null,null,"●","Frequently Asked Questions (FAQ)",null,null,null,null,null,null,null,null,null,null,null,null,"<<< clique sur ce lien pour accéder à la page des questions les plus fréquemment posées"]
[null,null,null,null,null,null,null,null,null,null,null,null,null,"●","Guide Newbie",null,null,null,null,null,null,null,null,null,null,null,null,"<<< clique sur ce lien pour accéder au guide pour les débutants"]
[null,null,null,null,null,null,null,null,null,null,null,null,null,"●","Wiki GPRO",null,null,null,null,null,null,null,null,null,null,null,null,"<<< clique sur ce lien pour accéder à la page du wiki de GPRO"]
[null,null,null,null,null,null,null,null,null,null,null,null,null,"●","Recherche sur les forums",null,null,null,null,null,null,null,null,null,null,null,null,"<<< clique sur ce lien pour accéder à la recherche sur les forums de GPRO"]
[]
[null,null,null,null,null,null,null,null,null,null,"PASSER SON CERTIFICAT AVEC LE RR CERTIFICATION MASTER"]
[null,null,null,null,null,null,null,null,null,null,"L'expérience prouve que certains RR ne prennent jamais le temps de passer le certificat, alors que la plupart des réponses sont disponibles sur le Forum. Ce module a donc pour objet"]
[null,null,null,null,null,null,null,null,null,null,"de fournir un outil permettant de passer la Certification avec une chance de réussite de plus de 95%, et de la manière la plus simple possible : il te suffit, pour chaque question,"]
[null,null,null,null,null,null,null,null,null,null,"de retrouver celle-ci dans la liste ci-dessous : les différents choix te seront alors indiqués, ainsi que la réponse qu'il te faudra donner (en vert). Note simplement que TOUTES les"]
[null,null,null,null,null,null,null,null,null,null,"questions ne sont pas forcément référencées dans la base, et que certaines questions sont modifiées avec le temps : il sera donc particulièrement bienvenu que tu postes sur le"]
[null,null,null,null,null,null,null,null,null,null,"Forum RR les \"nouvelles\" questions qu'on aurait pu te poser, ou bien les questions sur lesquelles la réponsee apporté par le Certification Master n'aura pas été jugée correcte."]
[]
[null,null,null,null,null,null,null,null,null,null,"LA QUESTION DE CERTIFICATION GPRO (73 QUESTIONS REFERENCEES)"]
[null,null,null,null,null,null,null,null,null,null,"Choisis la question dans la liste ci-contre",null,null,null,null,null,null,null,null,null,null,"What situation is usually referred to as Whiting Start? "]
[null,null,null,null,null,null,null,null,null,null,"Traduction de la question en Français:",null,null,null,null,null,null,null,null,null,null,{"$f":"IF(V24=\"\",\"\",LOOKUP(V24,K47:U119))","v":"Quelle situation est en général désignée par les termes \"Whiting Start\""}]
[]
[null,null,null,null,null,null,null,null,null,null,"LA REPONSE DU CERTIFICATION MASTER"]
[null,null,null,null,null,null,null,null,null,null,"La réponse correcte est la suivante :",null,null,null,null,null,null,null,null,null,null,{"$f":"IF(V$24=\"\",\"\",LOOKUP(V$24,K$47:L$119))","v":"When your car starts on rain tyres while the sun is shinning and the track is dry"}]
[null,null,null,null,null,null,null,null,null,null,{"$f":"IF(V29=\" \",\"\",IF(V29=\"\",\"\",\"Traduction de la réponse en Français:\"))","v":"Traduction de la réponse en Français:"},null,null,null,null,null,null,null,null,null,null,{"$f":"IF(V$24=\"\",\"\",LOOKUP(V$24,K$47:V$119))","v":"Quand votre voiture débute la course en pneus pluie alors que le soleil brille et que la piste est sèche"}]
[null,null,null,null,null,null,null,null,null,null,{"$f":"IF(V30=\" \",\"\",IF(V30=\"\",\"\",\"Cette réponse est incorrecte :\"))","v":"Cette réponse est incorrecte :"},null,null,null,null,null,null,null,null,null,null,{"$f":"IF(V$24=\"\",\"\",LOOKUP(V$24,K$47:M$119))","v":"When your car starts the race on white tyres"}]
[null,null,null,null,null,null,null,null,null,null,{"$f":"IF(V31=\" \",\"\",IF(V31=\"\",\"\",\"Traduction de la réponse en Français:\"))","v":"Traduction de la réponse en Français:"},null,null,null,null,null,null,null,null,null,null,{"$f":"IF(V$24=\"\",\"\",LOOKUP(V$24,K$47:W$119))","v":"Quand votre voiture débute la course avec des pneus blancs"}]
[null,null,null,null,null,null,null,null,null,null,{"$f":"IF(V32=\" \",\"\",IF(V32=\"\",\"\",\"Cette réponse est incorrecte :\"))","v":"Cette réponse est incorrecte :"},null,null,null,null,null,null,null,null,null,null,{"$f":"IF(V$24=\"\",\"\",LOOKUP(V$24,K$47:N$119))","v":"When you forget to put any tyres on the car for the start of the race"}]
[null,null,null,null,null,null,null,null,null,null,{"$f":"IF(V33=\" \",\"\",IF(V33=\"\",\"\",\"Traduction de la réponse en Français:\"))","v":"Traduction de la réponse en Français:"},null,null,null,null,null,null,null,null,null,null,{"$f":"IF(V$24=\"\",\"\",LOOKUP(V$24,K$47:X$119))","v":"Quand vous oubliez de mettre des pneumatiques sur votre voiture pour débuter la course"}]
[null,null,null,null,null,null,null,null,null,null,{"$f":"IF(V34=\" \",\"\",IF(V34=\"\",\"\",\"Cette réponse est incorrecte :\"))","v":"Cette réponse est incorrecte :"},null,null,null,null,null,null,null,null,null,null,{"$f":"IF(V$24=\"\",\"\",LOOKUP(V$24,K$47:O$119))","v":"When you forget to put any fuel in the car for the start of the race "}]
[null,null,null,null,null,null,null,null,null,null,{"$f":"IF(V35=\" \",\"\",IF(V35=\"\",\"\",\"Traduction de la réponse en Français:\"))","v":"Traduction de la réponse en Français:"},null,null,null,null,null,null,null,null,null,null,{"$f":"IF(V$24=\"\",\"\",LOOKUP(V$24,K$47:Y$119))","v":"Quand vous oubliez de mettre du carburant dans votre voiture pour débuter la course"}]
[null,null,null,null,null,null,null,null,null,null,{"$f":"IF(V36=\" \",\"\",IF(V36=\"\",\"\",\"Cette réponse est incorrecte :\"))","v":""},null,null,null,null,null,null,null,null,null,null,{"$f":"IF(V$24=\"\",\"\",LOOKUP(V$24,K$47:P$119))","v":" "}]
[null,null,null,null,null,null,null,null,null,null,{"$f":"IF(V37=\" \",\"\",IF(V37=\"\",\"\",\"Traduction de la réponse en Français:\"))","v":""},null,null,null,null,null,null,null,null,null,null,{"$f":"IF(V$24=\"\",\"\",LOOKUP(V$24,K$47:Z$119))","v":" "}]
[null,null,null,null,null,null,null,null,null,null,{"$f":"IF(V38=\" \",\"\",IF(V38=\"\",\"\",\"Cette réponse est incorrecte :\"))","v":""},null,null,null,null,null,null,null,null,null,null,{"$f":"IF(V$24=\"\",\"\",LOOKUP(V$24,K$47:Q$119))","v":" "}]
[null,null,null,null,null,null,null,null,null,null,{"$f":"IF(V39=\" \",\"\",IF(V39=\"\",\"\",\"Traduction de la réponse en Français:\"))","v":""},null,null,null,null,null,null,null,null,null,null,{"$f":"IF(V$24=\"\",\"\",LOOKUP(V$24,K$47:AA$119))","v":" "}]
[null,null,null,null,null,null,null,null,null,null,{"$f":"IF(V40=\" \",\"\",IF(V40=\"\",\"\",\"Cette réponse est incorrecte :\"))","v":""},null,null,null,null,null,null,null,null,null,null,{"$f":"IF(V$24=\"\",\"\",LOOKUP(V$24,K$47:R$119))","v":" "}]
[null,null,null,null,null,null,null,null,null,null,{"$f":"IF(V41=\" \",\"\",IF(V41=\"\",\"\",\"Traduction de la réponse en Français:\"))","v":""},null,null,null,null,null,null,null,null,null,null,{"$f":"IF(V$24=\"\",\"\",LOOKUP(V$24,K$47:AB$119))","v":" "}]
[null,null,null,null,null,null,null,null,null,null,{"$f":"IF(V42=\" \",\"\",IF(V42=\"\",\"\",\"Cette réponse est incorrecte :\"))","v":""},null,null,null,null,null,null,null,null,null,null,{"$f":"IF(V$24=\"\",\"\",LOOKUP(V$24,K$47:S$119))","v":" "}]
[null,null,null,null,null,null,null,null,null,null,{"$f":"IF(V43=\" \",\"\",IF(V43=\"\",\"\",\"Traduction de la réponse en Français:\"))","v":""},null,null,null,null,null,null,null,null,null,null,{"$f":"IF(V$24=\"\",\"\",LOOKUP(V$24,K$47:AC$119))","v":" "}]
[null,null,null,null,null,null,null,null,null,null,{"$f":"IF(V44=\" \",\"\",IF(V44=\"\",\"\",\"Cette réponse est incorrecte :\"))","v":""},null,null,null,null,null,null,null,null,null,null,{"$f":"IF(V$24=\"\",\"\",LOOKUP(V$24,K$47:T$119))","v":" "}]
[null,null,null,null,null,null,null,null,null,null,{"$f":"IF(V45=\" \",\"\",IF(V45=\"\",\"\",\"Traduction de la réponse en Français:\"))","v":""},null,null,null,null,null,null,null,null,null,null,{"$f":"IF(V$24=\"\",\"\",LOOKUP(V$24,K$47:AD$119))","v":" "}]
[]
[null,null,null,null,null,null,null,null,null,null,"After you make an offer to a driver when do you get him?","After the staff decision on either Mondays or Thursdays if your bid is successful","Nous ne disposons pas des mauvaises réponses pour cette question : aide-nous en postant celles-ci sur le Forum RR !!!"," "," "," "," "," "," "," ","Après avoir formulé une offre à un pilote, quand rejoint-il votre équipe ?","Après la décision du staff les Lundi et Jeudi, si votre offre est retenue"," "," "," "," "," "," "," "," "]
[null,null,null,null,null,null,null,null,null,null,"After you make an offer to a technical director, when do you get him? ","After the staff decision on either Mondays or Thursdays if your bid is successful","At 12.00 AM","Straight away","At the end of the season","When the technical director calls you on your mobile","None of the above "," "," "," ","Après avoir formulé une offre à un directeur technique, quand rejoint-il votre équipe ?","Après la décision du staff les Lundi et Jeudi, si votre offre est retenue","A midi","Tout de suite","A la fin de la saison","Quand le directeur technique vous appelle sur votre téléphone portable","Aucune des réponses disponibles"," "," "," "]
[null,null,null,null,null,null,null,null,null,null,"At the end of the season (after the last race) which of the following happens first? ","Money for your season position is awarded if you finished in top 10","The bonus for racing in all races of the season is awarded","Team points money is awarded","Promotion / relegation","None of the above "," "," "," "," ","A la fin de la saison (après la dernière course), lequel des évènements suivants survient en premier ?","Une prime vous est accordée pour votre classement sur la saison si vous avez terminé dans le Top 10","Une prime vous est accordée si vous avez participé à toutes les courses de la saison","Une prime vous est accordée pour les points obtenus par votre équipe","Le script de promotion/relégation est lancé","Aucune des réponses disponibles"," "," "," "," "]
[null,null,null,null,null,null,null,null,null,null,"At the end of the season do you get taxed? ","25% tax is taken on funds over $50.000.000 ","No, you pay no taxes","10% of your money is paid in tax","50% of your money are being taken by mr Shadow","All money is reset at the end of the season to $30.000.000 in Rookie, $35.000.000 in Amateur, $40.000.000 in Pro, $45.000.000 in Master and $50.000.000 in Elite"," "," "," "," ","A la fin de la saison, êtes-vous taxé ?","Une taxe de 25% est prélevée sur les fonds excédant 50 000 000 $","Non, vous ne payez aucune taxe","Une taxe de 10% de votre argent est prélevée","50% de votre argent est pris par Mr Shadow","Le capital est remis à zéro en fin de saison : 30 M$ en Rookie, 35M$ en Amateur, 40M$ en Pro, 45M$ en Master et 50M$ en Elite"," "," "," "," "]
[null,null,null,null,null,null,null,null,null,null,"Can you extend the contract of your technical director? ","No, it is not possible to extend contracts of technical directors","Yes, only if you have at least $5.000.000","Yes, at any time","Yes, only if he is not in any other manager's shortlist","Yes, only if your money balance is positive "," "," "," "," ","Pouvez-vous prolonger le contrat de votre directeur technique ?","Non, il est impossible de prolonger les contrats des directeurs techniques","Oui, seulement si vous disposez d'au moins 5 000 000 $","Oui, à n'importe quel moment","Oui, mais seulement s'il n'est pas déjà sur la shortlist d'un autre manager","Oui, mais seulement si votre balance financière est positive"," "," "," "," "]
[null,null,null,null,null,null,null,null,null,null,"Can you run any test laps if you have car parts with wear over 90%? ","No, since it is against the safety regulations ","You have to pay $2.000.000 to test with parts over 90%","Yes, as long as it's only one part","Yes, but only on Tuesdays and Fridays"," "," "," "," "," ","Pouvez-vous réaliser des essais privés si certaines pièces de votre voiture dépassent une usure de 90% ?","Non, car cela va à l'encontre de la règlementation sur la sécurité","Vous devez payer 2 000 000 $ pour réaliser des tests avec des pièces dont l'usure est supérieure à 90%","Oui, du moment qu'une seule pièce franchit cette limite","Oui, mais seulement les Mardi et Vendredi"," "," "," "," "," "]
[null,null,null,null,null,null,null,null,null,null,"Can you use any language (besides English) in the forums? ","Yes, only in the foreign language forum","Yes, only if you provide a link to a translator","No, only the admins are allowed to use foreign languages in the forum","Of course you can, its a free forum","No, only English is allowed in the forums "," "," "," "," ","Pouvez-vous vous exprimer en n'importe quelle langue (autre que l'Anglais) sur les forums ?","Oui, mais seulement sur les forums en langue étrangère","Oui, mais seulement si vous fournissez un lien vers un traducteur","Non, seuls les administrateurs sont autoriser à utiliser des langues étrangères sur le forum","Bien sûr que vous pouvez, c'est un forum libre","Non, seul l'Anglais est autorisé sur les forums"," "," "," "," "]
[null,null,null,null,null,null,null,null,null,null,"Could a manager promote from a position lower than 5th at the end of the season if there are no managers in negative in front of him? ","Yes, if there are extra free spots in the higher classes","Yes, if the manager is a relative of the admins","Yes, if the manager has scored at least 3 wins during the season","Yes, if the manager has scored at least 40 points during the season","Yes, if the manager bribes the admins","No, it is not possible","Yes, it is possible but only in Rookie where the top 10 managers promote to Amateur","Yes, the top 10 managers always promote at the end of the season","Yes, if there are managers in front of him that are inactive ","Un manager peut-il être promu depuis une position inférieure à la 5e place s'il n'y a pas de managers en négatif devant lui au classement ?","Oui, s'il y a des emplacements libres supplémentaires dans les divisions supérieures","Oui, si le manager est un parent des administrateurs","Oui, si le manager a remporté au moins trois victoires durant la saison","Oui, si le manager a marqué au moins 40 points durant la saison","Oui, si le manager soudoie les administrateurs","Non, ce n'est pas possible","Oui, c'est possible mais seulement en Rookie où les 10 meilleurs managers sont promus en Amateur","Oui, le Top 10 des managers est toujours promu en fin de saison","Oui, si certains managers mieux classés que lui sont inactifs"]
[null,null,null,null,null,null,null,null,null,null,"Do drivers lose their skills when they age? ","Drivers over the age of 35 will start to lose abilities ","Sometimes, if they are overweight","No, not at all","Yes, every season when a driver ages 1 year all his abilities will reduce","Only if they drink or smoke cigarettes"," "," "," "," ","Est-ce que les pilotes perdent leurs compétences quand ils vieillissent ?","Les pilotes âgés de plus de 35 ans commencent à perdre certaines compétences","Parfois, s'ils sont en surpoids","Non, pas vraiment","Oui, chaque saison, quand un pilote prend une année, ses compétences sont réduites","Seulement s'ils boivent ou fument des cigarettes"," "," "," "," "]
[null,null,null,null,null,null,null,null,null,null,"During the live race, why do your tyres flash at you some laps? ","Because they are worn","Because you need refuelling","Because they fancy you","Because it is raining and they are dry tyres","Because they are loose","None of the above "," "," "," ","Pendant le live de la course, pourquoi vos pneumatiques \"flashent\" pendant certains tours ?","Parcequ'ils sont usés","Parceque vous avez besoin de remettre du carburant","Parcequ'ils ont envie de vous faire plaisir","Parcequ'il pleut et que ce sont des pneus pour le sec","Parcequ'ils sont en vrac","Aucune des réponses disponibles"," "," "," "]
[null,null,null,null,null,null,null,null,null,null,"During the season there is a manager in a Master group who missed the first 8 races of the season, but yet his account was not deleted for inactivity. Why is that? ","None of the above ","The manager supplies the admins with free drinks","The manager has a technical director who is temporarily in charge of his team","The manager is a friend of the admins","The manager has frozen his account","That's not possible, it must be a bug","The manager is a supporter and has paid the admins to not get deleted","The manager has a special status"," ","Pendant la saison, un manager en division Master manque les 8 premières courses de la saison, mais son compte n'est pas supprimé pour inactivité. Pourquoi ?","Aucune des réponses disponibles","Le manager a offert des boissons gratuites aux administrateurs","Le manager dispose d'un directeur technique qui prend temporairement en charge l'équipe","Le manager est un ami des administrateurs","Le manager a gelé son compte","Ce n'est pas possible, c'est sans doute un bug","Le manager est un Supporter et a payé les administrateurs pour que son compte ne soit pas supprimé","Le manager a un statut particulier"," "]
[null,null,null,null,null,null,null,null,null,null,"How do you repair your car parts? ","You cannot repair parts, only replace them with new or downgrade them to improve wear if they are level 2 or above","You have to hire a technical director to be able to repair","The administrators will repair your car for you","Ask on the forum","None of the above "," "," "," "," ","Comment réparez-vous les pièces de votre voiture ?","Vous ne pouvez pas réparer les pièces, seulement les remplacer avec des nouvelles où baisser leur niveau pour augmenter leur usure si elles sont de niveau 2 et +","Vous devez embaucher un directeur technique qui sera capable de les réparer","Les administrateurs vont réparer votre voiture pour vous","Il faut le demander sur le forum","Aucune des réponses disponibles"," "," "," "," "]
[null,null,null,null,null,null,null,null,null,null,"How many staff offers can you make before a given staff decision? ","4","1","As many as you can afford without going into debt","As many as you like","It depends on the class you are racing in","2"," "," "," ","Combien d'offres d'embauche pouvez-vous faire avant une décision du staff donnée ?","4","1","Autant que vous pouvez vous le permettre sans tomber en déficit","Autant que vous le souhaitez","Cela dépend de la catégorie dans laquelle vous courez","2"," "," "," "]
[null,null,null,null,null,null,null,null,null,null,"How much does each driver offer you make cost? ","$500.000","$1.000.000 ","$10.000","Nothing, if you have a technical director"," "," "," "," "," ","Combien coûte chaque offre formulée pour embaucher un pilote ?","500 000 $","1 000 000 $","10 000 $","Rien, si vous avez un directeur technique"," "," "," "," "," "]
[null,null,null,null,null,null,null,null,null,null,"How much does it cost to do a practice lap? ","$50.000","It depends on the class you are in","$200.000","Nothing, it is free"," "," "," "," "," ","Combien cela coûte-t'il de faire un tour d'essai libre ?","50 000 $","Cela dépend de la catégorie dans laquelle vous êtes","200 000 $","Rien du tout, c'est gratuit"," "," "," "," "," "]
[null,null,null,null,null,null,null,null,null,null,"How much does it cost to do a qualifying lap? ","$100.000","Nothing, it is free","It's free only if you get pole, otherwise it costs $1.000.000","It depends if you know the admins or not "," "," "," "," "," ","Combien cela coûte-t'il de faire un tour de qualification ?","100 000 $","Rien du tout, c'est gratuit","C'est gratuit seulement si vous obtenez la pôle-position, sinon cela coûte 1 000 000 $","Ca dépend si vous connaissez les administrateurs ou pas"," "," "," "," "," "]
[null,null,null,null,null,null,null,null,null,null,"How much does it cost to go testing? ","$1.000.000 for the whole testing session ","$500.000 in Rookie, $750.000 in Amateur, $1.000.000 in Pro, $1.500.000 in Master and $2.000.000 in Elite","$1.000 if you are a boy, free if you are a girl","You pay $10.000 per lap","Nothing, it is free"," "," "," "," ","Combien cela coûte-t'il de faire des essais privés ?","1 000 000 $ pour l'intégralité de la séance d'essais privés","500 000 $ en Rookie, 750 000 $ en Amateur, 1 000 000 $ en Pro, 1 500 000 $ en Master et 2 000 000 $ en Elite","1 000 $ si vous êtes un garçons, gratuit si vous êtes une fille","Vous payez 10 000 $ par tour","Rien du tout, c'est gratuit"," "," "," "," "]
[null,null,null,null,null,null,null,null,null,null,"How much fuel is poured into the car on your 6th pit stop? ","You get the same amount of fuel as you had in the previous pit stop","The game asks you how much fuel to add during the race","No fuel is added, you are out of the race","The fuel tank is filled up to the maximum capacity","None of the above "," "," "," "," ","Quelle quantité de carburant est ajoutée dans la voiture lors de votre sixième arrêt aux stands ?","Vous avez la même quantité de carburant que vous aviez programmé lors du précédent arrêt aux stands","Le jeu vous demande combien de carburant vous souhaitez ajouter pendant la course","Aucun carburant n'est ajouté, vous devez abandonner","Le réservoir est rempli jusqu'à sa capacité maximale","Aucune des réponses disponibles"," "," "," "," "]
[null,null,null,null,null,null,null,null,null,null,"If there is 5% fuel left in the tank, approximately how much fuel is there in litres? ","9 litres","0 litres","X-N*sin(90-driverlength+driverweight)-windspeed/2 liters","10 litres","5 litres"," "," "," "," ","S'il reste 5% de carburant dans le réservoir, combien de carburant reste-il approximativement (en litres) ?","9 litres","0 litres","X-N*sin(90-driverlength+driverweight)-windspeed/2 liters","10 litres","5 litres"," "," "," "," "]
[null,null,null,null,null,null,null,null,null,null,"If you have a negative money balance you cannot : ","All of the above ","Train your staff","Train your driver","Buy new parts for your car","Upgrade your facilities","Carry out testing"," "," "," ","Si votre balance financière est négative, vous ne pouvez pas :","Toutes les réponses disponibles","Entraîner votre personnel","Entraîner votre pilote","Acheter de nouvelles pièces pour votre voiture","Améliorer vos installations","Réaliser des essais privés"," "," "," "]
[null,null,null,null,null,null,null,null,null,null,"If you win a race in Rookie and you are a member of a team, how many points will your team receive? ","2 points","3.25 points","0 points since managers in Rookie cannot score team points","2.5 points","10 points","Managers in Rookie cannot be members in teams","1 point","None of the above"," ","Si vous remportez une course en Rookie et êtes membre d'une équipe, combien de points votre équipe recevra-t'elle ?","2 points","3,25 points","0 points, car les managers en Rookie ne peuvent pas marquer de points d'équipe","2,5 points","10 points","Les managers en Rookie ne peuvent pas être membres d'équipes","1 point","Aucune des réponses disponibles"," "]
[null,null,null,null,null,null,null,null,null,null,"In the Race analysis page it says \"Fuel left = 5%\", what does this mean?","There is 5% of the tank capacity left","This means there are 5 litres of fuel left in the tank","There is no fuel left in the tank","The fuel in the tank has bad quality","There is 5% of the total fuel put into the tank for the stint left"," "," "," "," ","Dans la page d'analyse de course, il est dit \"Carburant restant = 5%\", qu'est ce que ça signifie ?","Il reste l'équivalent en carburant de 5% de la capacité du réservoir","Cela veut dire qu'il reste 5 litres de carburant dans le réservoir","Il ne reste plus de carburant dans le réservoir","Le carburant dans le réservoir est de mauvaise qualité","Il reste 5% du carburant qui a été remis dans le réservoir lors du dernier ravitaillement"," "," "," "," "]
[null,null,null,null,null,null,null,null,null,null,"In which case do you receive only 50% of the race income?","If you don't cover 90% of the race distance and you are in Elite, Master, Pro or Amateur","If you drive over a mechanic while entering the pits","If you drop out and fail to finish the race","You always receive the full race income","If you are 5 laps behind the leader"," "," "," "," ","Dans quel cas de figure ne recevez-vous que 50% des revenus de course ?","Si vous ne couvrez pas 90% de la distance de course et que vous êtes en Elite, en Master, en Pro ou en Amateur","Si vous roulez sur un mécanicien quand vous entrez dans les stands","Sil vous abandonnez et ne terminez pas la course","Vous recevez toujours l'intégralité des revenus de course","Si vous terminez à 5 tours derrière le vainqueur"," "," "," "," "]
[null,null,null,null,null,null,null,null,null,null,"In which situation will you lose your driver given that you are not in Rookie? ","If you are relegating to a lower class and his overall is over the limit for the class you are relegating to","If he is above the driver overall limits of your class while he still has a contract with you","When your money balance is negative and you can't afford to pay him anymore","All of the above "," "," "," "," "," ","Dans quelle situation perdrez vous un pilote donné si vous n'êtes pas en Rookie ?","Si vous êtes relégué vers une division inférieure et que son niveau global excède la limite de la catégorie où vous êtes relégué","S'il excède la limite de niveau global de votre catégorie alors qu'il est encore sous contrat avec vous","Quand votre balance financière et négative et que vous ne pouvez vous permettre de continuer à le payer","Toutes les réponses disponibles"," "," "," "," "," "]
[null,null,null,null,null,null,null,null,null,null,"Is it a good sign if you get a mail from someone called Mr Shadow and what could be the reason for that? ","It is a bad sign, surely you are in big trouble since you tried to cheat in one way or another and now it is time for you to pray to Mr Shadow","It is a bad sign, he will want you to transfer money to his account","He is a nasty salesman who will try to sell you junk","It is a good sign, he is the guy who gives tips to and welcomes all newbies "," "," "," "," "," ","Est-ce un bon signe si vous recevez un message de quelqu'un s'appellant Mr Shadow, et quelle peut en être la raison ?","C'est un mauvais signe, vous avez surement un gros problème car vous avez essayé de tricher d'une manière ou d'une autre, et c'est le moment de prier Mr Shadow","C'est un mauvais signe, il va vouloir que vous tranferiez votre argent sur son compte","C'est un méchant vendeur qui va essayer de vous refiler de la camelote","C'est un bon signe, c'est le gars qui donne des astuces et accueille tous les nouveaux"," "," "," "," "," "]
[null,null,null,null,null,null,null,null,null,null,"Is it true that you cannot share any data with other managers in this game? ","You can share data but not on the main game forums, you have to do this in the team forum or somewhere else","No, you can share data on the forums in the game","It is absolutely forbidden to share any data","You can only share data with your team mates "," "," "," "," "," ","Est-ce vrai que vous ne pouvez partager aucune donnée avec les autres managers dans ce jeu ?","Vous pouvez partager des données, mais pas sur les forums principaux du jeu, vous devez le faire dans les forums d'équipe ou autre part","Non, vous ne pouvez pas partager de donner sur les forums du jeu","Il est absolument interdit de partager des données","Vous ne pouvez partager des données qu'avec vos coéquipiers"," "," "," "," "," "]
[null,null,null,null,null,null,null,null,null,null,"Is there a way of getting your account reset because you made a big mistake? ","Yes, but only at the end of the season after you send a message to the admins before the end of Race 16","No, resets are not possible","Post a message on the forum and you will get told how to do a reset","The moderators can do that, so send them a message "," "," "," "," "," ","Existe-t'il un moyen de remettre votre compte à zéro car vous avez fait une grosse erreur ?","Oui, mais seulement à la fin de saison et après avoir envoyé un message aux administrateurs avant la fin de la 16e course","Non, les resets ne sont pas possibles","Postez un message sur le forum et on vous expliquera comment remettre votre compte à zéro","Les modérateurs peuvent le faire, envoyez-leur un message"," "," "," "," "," "]
[null,null,null,null,null,null,null,null,null,null,"On the Standings page a manager has an \"N\" next to his name, why is this? ","The manager has a negative balance","The manager is a nephew of the admins","The manager is cheating","The manager is a supporter","The manager is using doping","The manager is inactive","The manager is nervy","The manager is a newbie","The manager is special","Sur la page des classements, un manager a un \"N\" à côté de son nom, qu'est-ce que cela signifie ?","Le manager a une balance financière négative","Le manager est un neveu des administrateurs","Le manager triche","Le manager est un Supporter","Le manager utilise des produits dopants","Le manager est inactif","Le manager est audacieux","Le manager est un débutant","Le manager est spécial"," "]
[null,null,null,null,null,null,null,null,null,null,"There is a tie in the season standings, how is it decided who goes first? ","The one with better race results (most wins, most second places etc.) will be ranked first","The manager with most pole positions goes first","The manager with most fastest laps goes first","Average position over all the races during the season","Managers are ranked according to their names in alphabetical order","None of the above "," "," "," ","Il y a une égalité sur le classement de la saison, comment est-il décidé qui aura la priorité au classement ?","Celui qui a les meilleurs résultats (plus de victoires, plus de secondes places etc…) sera classé premier","Le manager avec le plus de pôle-positions aura la priorité au classement","Le manager avec le plus de meilleurs tours en course aura la priorité au classement","Position moyenne sur l'ensemble des courses de la saison","Les managers sont classés par ordre alphabétique de leurs noms respectifs","Aucune des réponses disponibles"," "," "," "]
[null,null,null,null,null,null,null,null,null,null,"To create a new team, you must : ","Pay $5.000.000, have a positive money balance and be in Amateur class or above","Have scored over 30 points","Pay $5.000.000","Pay $5.000.000, have scored over 30 points and have a positive money balance","Pay $3.000.000","Have a positive money balance","Be in Amateur class or above "," "," ","Pour fonder une nouvelle équipe, vous devez :","Payer 5 000 000 $, avoir une balance financière positive et être en catégorie Amateur ou au-delà","Avoir marqué plus de 30 points","Payer 5 000 000 $","Payer 5 000 000 $, avoir marqué au moins 30 points et avoir une balance financière positive","Payer 3 000 000 $","Avoir une balance financière positive","Etre en catégorie Amateur ou au-delà"," "," "]
[null,null,null,null,null,null,null,null,null,null,"Up until what time before the race are you able to qualify and change your race setup and strategy? ","1 hour and 30 minutes before the start of the race","You can also change your strategy and setup during the race","24 hours before the start of the race","Until the start of the race","None of the above "," "," "," "," ","Jusqu'à quel moment avant la course pouvez-vous vous qualifier et modifier votre réglage de course et votre stratégie ?","Une heure et demi avant le début de la course","Vous pouvez aussi modifier votre stratégie et votre réglage pendant la course","24 heures avant le début de la course","Jusqu'au départ de la course","Aucune des réponses disponibles"," "," "," "," "]
[null,null,null,null,null,null,null,null,null,null,"What do P, H and A mean in GPRO context? ","Power, handling and acceleration","Peace, happiness and advancement","Its a secret","They can be whatever you want them to be","They are just letters and have no meaning "," "," "," "," ","Que signifient les lettres P, H et A dans le contexte de GPRO ?","Power (puissance), Handling (maniabilité) et Acceleration (accélération)","Paix, bonheur et progrès","C'est un secret","Elles peuvent représenter ce que vous voulez qu'elles représentent","Ce sont juste des lettres et elles n'ont pas de signification particulière"," "," "," "," "]
[null,null,null,null,null,null,null,null,null,null,"What does FOBY stand for? ","Find out by yourself","It is a short for Phobia","F*ck off and buy some yoghurt","Face it, onions and beer makes you look younger","None of the above "," "," "," "," ","Quelle est la signification de FOBY ?","Find out by yourself (trouvez par vous-même)","C'est un diminutif de Phobie","Va te faire foutre et achète du yaourt","Avoue-le, les onions et la bière te font paraître plus jeune","Aucune des réponses disponibles"," "," "," "," "]
[null,null,null,null,null,null,null,null,null,null,"What does testing do? ","It earns you character points for your car and helps reveal data for the game","It gets you more sponsors","It helps you train your driver","Nothing, it just costs me a lot of money","None of the above "," "," "," "," ","Quel est le rôle des essais privés ?","Ils font gagner des points de compétence pour la voiture et aident à révéler certaines données pour le jeu","Ils permettent d'avoir plus de sponsors","Ils aident à entraîner votre pilote","Rien du tout, ça me coûte juste beaucoup d'argent","Aucune des réponses disponibles"," "," "," "," "]
[null,null,null,null,null,null,null,null,null,null,"What does the green \"F\" mean next to a driver's name?","The next race is the the driver's favorite track","The driver is too fat and needs to lose weight to be allowed to participate in the next race","The driver is furious after being dismissed by his team","The driver is a friend of your driver and will let him overtake without any resistance","The driver has a facebook profile","The driver is female","The driver finished first in the last race"," "," ","Que signifie le \"F\" écrit en vert à côté du nom d'un pilote ?","La prochaine course se dispute sur le circuit favori du pilote","Le pilote est trop gros et a besoin de perdre du poids pour être autorisé à participer à la prochaine course","Le pilote est furieux après avoir été licencié par son équipe","Le pilote est un ami de votre pilote et il le laissera passer sans aucune résistance","Le pilote a un profil sur facebook","Le pilote est une femme","Le pilote a terminé premier de la dernière course"," "," "]
[null,null,null,null,null,null,null,null,null,null,"What does the pit training center facility do? ","Increases the maximum training level for your pit crew","Allows you to place a fat TV in the pits and watch races in HD","Allows you to get cheaper parts","Allows you to make money from training other teams' pit crews","Improves your pit crew's speed","None of the above "," "," "," ","Quel est le rôle du centre d'entraînement aux arrêts aux stands ?","Il augmente le niveau maximal d'entraînement pour votre équipe des stands","Il vous permet de mettre une grosse télé dans les stands et de regarder les courses en haute définition","Il vous permet d'obtenir des pièces moins chères","Il vous permet de gagner de l'argent en entraînant les équipes de stands des autres écuries","Il améliore la vitesse de votre équipe des stands","Aucune des réponses disponibles"," "," "," "]
[null,null,null,null,null,null,null,null,null,null,"What does the sponsor attribute reputation mean? ","It represents the reputation of the sponsor and the higher the reputation the less is the chance the sponsor to throw a bad surprise at you","It is rubbish, it doesn't mean anything","It represents the reputation of your driver","It tells you if the sponsor already has a contract with another manager"," "," "," "," "," ","Qu'est ce que l'attribut \"réputation\" du sponsor signifie ?","Il représente la réputation du sponsor, et plus élevée est cette réputation, moins les chances seront grandes que le sponsor vous fasse de mauvaises surprises","C'est de la foutaise, ça ne veut rien dire","Il représente la réputation de votre pilote","Il vous indique si le sponsor est déjà sous contrat avec un autre manager"," "," "," "," "," "]
[null,null,null,null,null,null,null,null,null,null,"What happens if you are in debt at the end of the season? ","If you are in Elite, Master, Pro or Amateur you get relegated, if you are in Rookie you stay in Rookie for the next season","You get kicked out of the game only if you are in Rookie","You get kicked out of the game and your account is deleted","You will be abducted by aliens "," "," "," "," "," ","Que se passe-t'il si vous êtes en négatif à la fin de la saison ?","Si vous êtes en Elite, Mater, Pro ou Amateur, vous serez relégué, si vous êtes en Rookie vous y resterez la saison prochaine","Vous serez expulsé du jeu, mais seulement si vous êtes en Rookie","Vous serez expulsé du jeu et votre compte sera supprimé","Vous serez enlevé par des extra-terrestres"," "," "," "," "," "]
[null,null,null,null,null,null,null,null,null,null,"What happens if you've made offers to two drivers and they both accept the offers? ","The offer with higher priority will be signed and the other offer will be automatically canceled","You will sign both drivers, but one will be used only for testing","The matter will go to the supreme GPRO court where a final decision will be made which driver gets to race for your team","You can only make offers to one driver at a time","You will have to pay compensation to one of the drivers","You will sign both drivers, and both will race for your team","The driver with the higher overall will be signed and the other offer will be automatically canceled","You will sign both drivers, but one will be considered inactive","None of the above ","Que se passe-t'il si vous avez fait des offres à deux pilotes et qu'ils acceptent tous deux ces offres ?","L'offre avec la plus grande priorité sera acceptée et l'autre offre sera automatiquement annulée","Vous signerez avec les deux pilotes, mais l'un d'eux sera utilisé seulement lors des essais privés","Le problème sera porté devant la cour suprême de GPRO, où une décision finale sera prise pour savoir quel pilote courra pour votre écurie","Vous pouvez seulement faire des offres à un seul pilote en même temps","Vous aurez à payer une compensation financière à l'un de ces pilotes","Vous signerez avec chacun des deux pilotes, et ces deux pilotes courront pour votre écurie","Le pilote avec le niveau global le plus élevé signera avec votre écurie, et l'autre offre sera automatiquement annulée","Vous signerez avec chacun des deux pilotes, mais l'un d'eux sera considéré comme étant inactif","Aucune des réponses disponibles"," "]
[null,null,null,null,null,null,null,null,null,null,"What happens to your staff and driver if you are $15.000.000 or more in debt? ","The staff and driver motivation will drop to 0 ","You have to donate money to the site to top up your game money account otherwise your staff and driver will leave you","Your driver will lose all his skills","The staff and driver motivation will rise to 250"," "," "," "," "," ","Qu'arrive-t'il à votre personnel et à votre pilote quand vous êtes à moins de 15 000 000 $ en négatif ?","La motivation du personnel et du pilote tombent à zéro","Vous devez donner de l'argent au site pour remettre à flot votre compte, autrement votre personnel et votre pilote vous quitteront","Votre pilote perdra toutes ses compétences","La motivation du personnel et du pilote monteront à 250"," "," "," "," "," "]
[null,null,null,null,null,null,null,null,null,null,"What happens when the negotiation with a sponsor reaches 100% and the car spot you negotiated is not yet free? ","The negotiated contract will be put on hold and you will have to accept it yourself when the spot becomes free","That situation cannot happen","The sponsor will cancel the negotiations and the negotiated contract will be declared invalid","You will have to pay a compensation to the new sponsor for each race the spot remains taken","The negotiated contract will replace the old one and you will have to pay a compensation to the old sponsor","The sponsor will start a lawsuit against your team","You can have two sponsors on the same car spot","None of the above"," ","Que se passe-t'il quand la négociation avec un sponsor atteint 100% et que l'emplacement que vous avez négocié n'est pas encore disponible ?","Le contrat négocié sera mis en attente et vous devrez accepter celui-ci vous-même quand l'emplacement deviendra disponible","Cette situation ne peut se produire","Le sponsor annulera la négociation et le contrat négocié sera déclaré invalide","Vous aurez à payer une compensation au nouveau sponsor pour chaque course où l'emplacement sera pris","Le contrat négocié remplacera l'ancien contrat, et vous aurez à payer une compensation financière à l'ancien sponsor","Le sponsor engagera une procédure judiciaire contre votre équipe","Vous pouvez avoir deux sponsors sur le même emplacement","Aucune des réponses disponibles"," "]
[null,null,null,null,null,null,null,null,null,null,"What happens with the current sponsor negotiations when you promote or relegate?","The negotiations won't be affected by the promotion or relegation and will proceed normally","The negotiations will be taken over by an affiliate of the sponsor company in your new group","They are reset to 0% and you need to start negotiating from the beginning","The negotiations are being cancelled since you have been moved to another group","None of the above "," "," "," "," ","Quel est l'impact de la promotion ou de la relégation sur les négociations en cours avec les sponsors ?","Les négociations ne seront pas affectées par la promotion ou la relégation et se poursuivrant normalement","Les négociations seront prises en charge par une filiale de la compagnie commanditaire dans votre nouvelle division","Elles seront remises à zéro et vous devrez reprendre les négociations depuis le début","Les négociations sont annulées à partir du moment où vous changez de division","Aucune des réponses disponibles"," "," "," "," "]
[null,null,null,null,null,null,null,null,null,null,"What is the capacity of the fuel tank in litres? ","The fuel tank can hold 180L of fuel","The fuel tank can hold as much fuel as you like","This is a complex formula and you have to find it out yourself","I don't need to know this","The fuel tank can hold 150L of fuel "," "," "," "," ","Quelle est la capacité du réservoir de carburant en litres ?","Le réservoir peut contenir 180 litres de carburant","Le réservoir peut contenir autant de carburant que vous le souhaitez","C'est une formule complexe et vous devez la trouver par vous-même","Je n'ai pas besoin de savoir cela","Le réservoir peut contenir 150 litres de carburant"," "," "," "," "]
[null,null,null,null,null,null,null,null,null,null,"What is the difference between the different dry tyre compounds? ","The softer compounds are faster, but wear quicker","It doesn't make any difference which tyre compound you pick","Softer compounds wear less, but are slower","You use a softer compound when it rains "," "," "," "," "," ","Quelle est la différence entre les différents types de pneumatiques ?","Les gommes les plus tendres sont plus rapides, mais s'usent plus rapidement","Le type de pneumatique que vous utilisez ne fait aucune différence","Les gommes les plus tendres s'usent moins, mais sont plus lentes","Vous utilisez une gomme plus tendre lorsqu'il pleut"," "," "," "," "," "]
[null,null,null,null,null,null,null,null,null,null,"What is the maximum facility level permitted in Amateur?","Level 40","Level 20","Level 60","Level 80","There is no limit in Amateur"," "," "," "," ","Quel est le niveau maximal des installations autorisé en catégorie Amateur ?","Niveau 40","Niveau 20","Niveau 60","Niveau 80","Il n'y a pas de limite en Amateur"," "," "," "," "]
[null,null,null,null,null,null,null,null,null,null,"What is the maximum facility level permitted in Elite? ","There is no limit in Elite","level 20","level 40","level 60","level 80"," "," "," "," ","Quel est le niveau maximal des installations autorisé en catégorie Elite ?","Il n'y a pas de limite en Elite","Niveau 20","Niveau 40","Niveau 60","Niveau 80"," "," "," "," "]
[null,null,null,null,null,null,null,null,null,null,"What is the maximum facility level permitted in Master?","Level 80","Level 20","Level 40","Level 60","There is no limit in Master"," "," "," "," ","Quel est le niveau maximal des installations autorisé en catégorie Master ?","Niveau 80","Niveau 20","Niveau 40","Niveau 60","Il n'y a pas de limite en Master"," "," "," "," "]
[null,null,null,null,null,null,null,null,null,null,"What is the maximum facility level permitted in Pro?","Level 60","Level 20","Level 40","Level 80","There is no limit in Pro"," "," "," "," ","Quel est le niveau maximal des installations autorisé en catégorie Pro ?","Niveau 60","Niveau 20","Niveau 40","Niveau 80","Il n'y a pas de limite en Pro"," "," "," "," "]
[null,null,null,null,null,null,null,null,null,null,"What is the maximum facility level permitted in Rookie?","Level 20","Level 40","Level 60","Level 80","There is no limit in Rookie"," "," "," "," ","Quel est le niveau maximal des installations autorisé en catégorie Rookie ?","Niveau 20","Niveau 40","Niveau 60","Niveau 80","Il n'y a pas de limite en Rookie"," "," "," "," "]
[null,null,null,null,null,null,null,null,null,null,"What is the maximum number of races that you can have a driver for at any one time? ","When you sign your driver for 17 races you can also immediately renew him for 17 races. So 34 races in total","1 race","17 races","Until he brakes his leg","Until his wife gets pregnant","You can keep your driver indefinately "," "," "," ","Quel est le nombre maximal de courses pour lequel vous pouvez disposer d'un pilote à n'importe quel moment donné ?","Quand vous signez un pilote pour 17 courses, vous pouvez immédiatement renouveler son contrat pour 17 courses. 34 courses au total, par conséquent.","1 course","17 courses","Jusqu'à ce qu'il se casse une jambe","Jusqu'à ce que sa femme tombe enceinte","Vous pouvez conserver votre pilote indéfiniment"," "," "," "]
[null,null,null,null,null,null,null,null,null,null,"What is the penalty for failing to complete 90% of the race distance in the Rookie class? ","There is no penalty","10 pressups","You won't get any race prize at all","50% of your race prize money "," "," "," "," "," ","Quelle est la pénalité appliquée lorsqu'on échoue à parcourir 90% de la distance de course en catégorie Rookie ?","Il n'y a pas de pénalité","10 pompes","Vous ne toucherez aucune prime de course","50% de votre prime de course"," "," "," "," "," "]
[null,null,null,null,null,null,null,null,null,null,"What is the point scoring system for placings in races in GPRO? ","The old Formula 1 point scoring system is used, where managers in positions 1-8 get 10-8-6-5-4-3-2-1 points respectively","The race winner gets 100 points, the rest nothing","The race winner gets 40 points, position 2 gets 39 points and so on to position 40","The points system where managers in positions 1-5 get 10-6-4-2-1 points respectively","The official Nascar point scoring system is used "," "," "," "," ","Quel est le barème de points pour le classement de chaque course dans GPRO ?","L'ancien barème utilisé en Formule 1, où les 8 premiers marquent respectivement 10-8-6-5-4-3-2-1 points","Le vainqueur de la course marque 100 points, les autres aucun point","Le vainqueur de la course marque 40 points, le second marque 39 points et ainsi de suite jusqu'à la 40e position","Le barème de points où les 5 premiers marquent respectivement 10-6-4-2-1 points","Le barème de point officiel de la Nascar est utilisé"," "," "," "," "]
[null,null,null,null,null,null,null,null,null,null,"What is the total race prize for the win and the pole in the Rookie class?","$8.500.000","Nous ne disposons pas des mauvaises réponses pour cette question : aide-nous en postant celles-ci sur le Forum RR !!!"," "," "," "," "," "," "," ","Quelle est la prime totale pour la victoire et la pôle-position en catégorie Rookie ?","8 500 000 $"," "," "," "," "," "," "," "," "]
[null,null,null,null,null,null,null,null,null,null,"What is usually referred to as \"juniorism\" in the GPRO forums? ","It is a misterious forum bug which makes a quote look like it was written from another person","It is a silly forum game where you have to make the most posts in a minute","It is a new popular music style founded by Junior Almeida","It is a brasilian political movement with Junior Almeida as a leader","It is a famous brand of milk from Brazil","None of the above "," "," "," ","Qu'est-ce qui est en général désigné par le terme \"juniorisme\" sur les forums GPRO ?","Il s'agit d'un mystérieux bug sur le forum, qui fait ressembler une citation à ce qu'elle serait si elle avait été écrite par une autre personne","C'est un jeu de forum idiot où vous devez marquer le plus de points possible en une minute","C'est un nouveau style de musique populaire qui a été lancé par Junior Almeida","Il s'agit d'un mouvement politique brésilien dont Junior Almeida est le leader","Il s'agit d'une célèbre marque de lait en provenance du Brésil","Aucune des réponses disponibles"," "," "," "]
[null,null,null,null,null,null,null,null,null,null,"What should you do before posting a new topic in the forum? ","Check if to see if a similar topic isn't already on the forums","Wait for all forum moderators to go offline","Just go ahead and post it, who cares?","Blink twice","Visit the bathroom","None of the above "," "," "," ","Que devriez-vous faire avant de poster un nouveau sujet sur le forum ?","Vérifier si un sujet similaire n'existe pas déjà sur les forums","Attendre que tous les modérateurs du forum soient déconnectés","Y aller tout simplement et poster mon sujet, qui s'en soucie ?","Cligner de l'œil deux fois","Aller faire un tour à la salle de bains","Aucune des réponses disponibles"," "," "," "]
[null,null,null,null,null,null,null,null,null,null,"What situation is usually referred to as Whiting Start? ","When your car starts on rain tyres while the sun is shinning and the track is dry","When your car starts the race on white tyres","When you forget to put any tyres on the car for the start of the race","When you forget to put any fuel in the car for the start of the race "," "," "," "," "," ","Quelle situation est en général désignée par les termes \"Whiting Start\"","Quand votre voiture débute la course en pneus pluie alors que le soleil brille et que la piste est sèche","Quand votre voiture débute la course avec des pneus blancs","Quand vous oubliez de mettre des pneumatiques sur votre voiture pour débuter la course","Quand vous oubliez de mettre du carburant dans votre voiture pour débuter la course"," "," "," "," "," "]
[null,null,null,null,null,null,null,null,null,null,"What tyres can you use in practice?","You can use whatever tyres you like in practice","You have to use special practice tyres","You can only use rain tyres","You can only use the tyres you want to use in the race","None of the above "," "," "," "," ","Quels pneumatiques pouvez-vous utiliser en essais libres ?","Vous pouvez utiliser le type de pneumatiques que vous voulez en essais libres","Vous devez utiliser des pneumatiques \"spécial essais libres\"","Vous ne pouvez utiliser que des pneus \"pluie\"","Vous pouvez utiliser uniquement les pneumatiques que vous voulez utiliser en course","Aucune des réponses disponibles"," "," "," "," "]
[null,null,null,null,null,null,null,null,null,null,"What tyres can you use in Qualify 1? ","You can only use rain tyres and the tyres you want to use in the race","You can only use extra soft tyres","You can only use the tyres you want to use in the race","It doesn't matter what tyres you use "," "," "," "," "," ","Quels pneumatiques pouvez-vous utiliser lors de la Q1 ?","Vous pouvez utiliser uniquement les pneus \"pluie\" et les pneumatiques que vous souhaitez utiliser en course","Vous pouvez utiliser uniquement les pneus extra-tendres","Vous pouvez uniquement utiliser les pneumatiques que vous souhaitez utiliser en course","Les pneumatiques que vous utilisez n'ont pas d'importance"," "," "," "," "," "]
[null,null,null,null,null,null,null,null,null,null,"What tyres can you use in Qualify 2?","You can only use rain tyres or the tyres you selected in Qualify 1","You can only use the tyres you want to use in the race","You can only use rain tyres","You can use whatever tyres you like"," "," "," "," "," ","Quels pneumatiques pouvez-vous utiliser lors de la Q2 ?","Vous pouvez uniquement utiliser les pneus \"pluie\" ou les pneumatiques que vous avez sélectionnés en Q1","Vous pouvez uniquement utiliser les pneumatiques que vous souhaitez utiliser en course","Vous ne pouvez utiliser que des pneus \"pluie\"","Vous pouvez utiliser les pneumatiques que vous souhaitez"," "," "," "," "," "]
[null,null,null,null,null,null,null,null,null,null,"What tyres can you use in the race? ","You can only use rain tyres or the tyres you selected in Qualify 1","You can only use rain tyres","You can use whatever tyres you like","You can only use extra soft tyres "," "," "," "," "," ","Quels pneumatiques pouvez-vous utiliser lors de la course ?","Vous pouvez uniquement utiliser les pneus \"pluie\" ou les pneumatiques que vous avez sélectionnés en Q1","Vous ne pouvez utiliser que des pneus \"pluie\"","Vous pouvez utiliser les pneumatiques que vous souhaitez","Vous pouvez utiliser uniquement les pneus extra-tendres"," "," "," "," "," "]
[null,null,null,null,null,null,null,null,null,null,"What will happen if a manager finishes a Rookie season in the top 5 but with a negative money balance? ","He will stay in Rookie for the next season","He will lose his/her account","He will promote but will be also forced to sell car parts until his balance is positive","He will promote to an Amateur group "," "," "," "," "," ","Que se passe-t'il si un manager termine une saison Rookie dans le top 5, mais avec une balance financière négative ?","Il restera en Rookie la saison prochaine","Il perdra son compte","Il sera promu, mais sera également forcé de vendre des pièces mécaniques jusqu'à ce que sa balance financière soit positive","Il sera promu dans un groupe de la catégorie Amateur"," "," "," "," "," "]
[null,null,null,null,null,null,null,null,null,null,"What will happen with a team if the team leader is being deleted for inactivity? ","The manager in spot #2 in the team will be promoted to become the team leader","The team will be also deleted","Each member of the team will be charged a fine worth $5.000.000","The team will be sold on an auction","The team will be declared inactive","Team leaders can't be deleted for inactivity","None of the above"," "," ","Qu'arrivera-t'il à une équipe dont le leader disparaît du jeu pour cause d'inactivité ?","Le second manager sur la liste d'équipe sera promu et deviendra le nouveau leader d'équipe","L'équipe sera également supprimée","Chaque membre de l'équipe devra s'acquitter d'une amende de 5 000 000 $","L'équipe sera vendue lors d'une vente aux enchères","L'équipe sera déclarée inactive","Les leaders d'équipes ne peuvent être supprimés pour inactivité","Aucune des réponses disponibles"," "," "]
[null,null,null,null,null,null,null,null,null,null,"When can you cancel your team membership? ","It can be cancelled at any time","Cancelling team membership is not possible","Only before the first race of the season","Only if the team leader approves a request for transfer to another team","Only if you are a team leader","Only if you bribe the team leader and ask him to kick you out of the team","None of the above"," "," ","Quand pouvez-vous annuler votre statut de membre d'une équipe ?","Il peut être annulé à n'importe quel moment","Annuler ce type de statut est impossible","Seulement avant la première course de la saison","Seulement si le leader de l'équipe approuves une requête de transfert vers une autre équipe","Seulement si vous êtes le leader de l'équipe","Seulement si vous soudoyez le leader de l'équipe et lui demandez de vous expulser de l'équipe","Aucune des réponses disponibles"," "," "]
[null,null,null,null,null,null,null,null,null,null,"Where was held the first official GPRO meeting? ","In Brussels, Belgium","In Barcelona, Spain","In Amsterdam, Netherlands","In Munich, Germany","In Paris, France","In Vilnius, Lithuania","At Globen in Stockholm, Sweden","At an internet café in the centre of Sofia, Bulgaria","None of the above ","Où s'est tenu le premier meeting officiel GPRO ?","A Bruxelles, en Belgique","A Barcelone, en Espagne","A Amsterdam, aux Pays Bas","A Munich, en Allemagne","A Paris, en France","A Vilnius, en Lithuanie","Au Globe à Stockholm, en Suède","Dans un cybercafé du centre de Sofia, en Bulgarie","Aucune des réponses disponibles"," "]
[null,null,null,null,null,null,null,null,null,null,"Where was held the second official GPRO meeting? ","Munich, Germany","Anderstorp, Sweden","Berlin, Germany","Vilnius, Lithuania","Paul Ricard, France","Kaunas, Lithuania","Nice, France","In Amsterdam, Netherlands","London, United Kingdom ","Où s'est tenu le second meeting officiel GPRO ?","A Munich, en Allemagne","A Anderstorp, en Suède","A Berlin, en Allemagne","A Vilnius, en Lithuanie","Au Paul Ricard, en France","A Kaunas, en Lithuanie","A Nice, en France","A Amsterdam, aux Pays Bas","A Londres, au Royaume-Uni"," "]
[null,null,null,null,null,null,null,null,null,null,"Who can make offers to technical directors? ","Everyone in Pro, Master and Elite","Everyone who is a friend of the admins","Everyone","Everyone apart from managers in Rookie groups","Everyone with at least $40.000.000 in his bank account","None of the above "," "," "," ","Qui peut faire des offres aux directeurs techniques ?","Tout le monde en Pro, Master et Elite","Tous ceux qui sont potes avec les administrateurs","Tout le monde","Tout le monde, à l'exception des managers en catégorie Rookie","Tous ceux qui disposent d'au moins 40 000 000 $ sur leur compte en banque","Aucune des réponses disponibles"," "," "," "]
[null,null,null,null,null,null,null,null,null,null,"Why can the estimated average progress for some sponsors in Rookie be over 0% before the first race of the season? ","Because ex-rookie managers, who promoted to Amateur the previous season, continued their ongoing negotiations with the sponsors from their old Rookie group","That is not possible since the sponsor negotiations for all rookies are reset at the start of the season","Because some managers have a driver with high charisma which gives extra negotiation progress before each race","Because some rookie managers are friends with mr Shadow who gives them extra negotiation progress","Because some managers have cheated the regulations and started the negotiations early during the break between the seasons","None of the above "," "," "," ","Pourquoi le pourcentage estimé d'avancement de certains sponsors en Rookie peut-il être au dessus de 0% avant la première course de la saison ?","Car les anciens managers de Rookie promus en Amateur la saison précédente continuent les négociations en cours avec les sponsors de leur ancien groupe Rookie","Ce n'est pas possible, dans la mesure où les négociations de tous les Rookies sont remises à zéro au début de la saison","Parceque certains managers ont un pilote avec un charisme élevé, qui leur donne un bonus de progression sur les négociations avant chaque course","Parceque certains managers en Rookie sont amis avec Mr Shadow qui leur donne des bonus dans l'avancement des négociations","Parceque certains managers ont triché et ont débuté les négociations plus tôt, durant l'intersaison","Aucune des réponses disponibles"," "," "," "]
[null,null,null,null,null,null,null,null,null,null,"Will you receive any money if you pass this test? ","None of the above ","Yes, everyone who passes the test gets $1.000.000","Yes, everyone who passes the test gets $3.000.000","No, there are no money awarded for passing the test","Yes, everyone who passes the test gets $3.000.000 but only if they are in Rookie","Yes, everyone who passes the test gets $2.000.000"," "," "," ","Allez-vous recevoir de l'argent si vous passez ce test avec succès ?","Aucune des réponses disponibles","Oui, tous ceux qui passent le test avec succès gagnent 1 000 000 $","Oui, tous ceux qui passent le test avec succès gagnent 3 000 000 $","Non, il n'y a pas de récompense pécunière pour un succès sur ce test","Oui, tous ceux qui passent le test avec succès gagnent 3 000 000 $, mais seulement s'ils sont en catégorie Rookie","Oui, tous ceux qui passent le test avec succès gagnent 2 000 000 $"," "," "," "]
[null,null,null,null,null,null,null,null,null,null,"You get a message from the moderators about a post you created on the forum, what do you do? ","Accept it - according to the rules the moderators' decision is final ","Email the moderators to tell them to get lost","Dispute the message in the public forum","Quit the game"," "," "," "," "," ","Vous recevez un message des modérateurs au sujet d'un post que vous avez écrit sur le forum, que faites-vous ?","Je l'accepte - au regard des règles, la décision des modérateurs ne souffre pas d'objection","J'envoie un mail aux modérateurs pour leur dire d'aller se faire voir","Je conteste le message sur le forum public","Je quitte le jeu"," "," "," "," "," "]
[null,null,null,null,null,null,null,null,null,null,"You have an engine with a wear value of 95%, is this high or low wear? ","High wear - the wear value increases as the part wears","Low wear - the wear value reduces as the part wears","It depends on the track","Wear doesn't matter","None of the above "," "," "," "," ","Vous avez un moteur avec une valeur d'usure de 95%, est-ce une usure élevé ou basse ?","Usure élevée - la valeur d'usure augmente quand la pièce s'use","Usure basse - la valeur d'usure diminue quand la pièce s'use","Cela dépend de la piste","L'usure ne pose aucun problème","Aucune des réponses disponibles"," "," "," "," "]
[null,null,null,null,null,null,null,null,null,null,"You have qualified for the race but forgot to set your setup, what happens? ","The Qualify 2 settings will be used by default","You are disqualified and won't start the race","Your car starts the race with a setting of 0 for every part","Your car starts the race with a setting of 500 for every part","Your car starts the race with a setting of 999 for every part "," "," "," "," ","Vous vous êtes qualifié pour la course, mais avez oublié de définir un réglage, que se passe-t'il ?","Les réglages de la Q2 seront utilisés par défaut","Vous êtes disqualifié et ne prendrez pas part à la course","Votre voiture débute la course avec un réglage de 0 sur chaque pièce","Votre voiture débute la course avec un réglage de 500 sur chaque pièce","Votre voiture débute la course avec un réglage de 999 sur chaque pièce"," "," "," "," "]
[null,null,null,null,null,null,null,null,null,null,"You make a stupid mistake in qualifying, using dry tyres on a wet track, what should you do? ","Kick yourself for not paying attention and live with it ","Complain on the forum and get the game changed","Contact the admins and ask them to undo your mistake","Blame someone else"," "," "," "," "," ","Vous avez fait une erreur stupide en qualification, utilisant des pneus pour piste sèche sur une piste mouillée, que devriez-vous faire ?","Vous botter l'arrière train pour ne pas avoir fait attention, et vivre avec","Vous plaindre sur le forum et demander à ce que le jeu soit modifié","Contacter les administrateurs et leur demander d'annuler votre erreur","Rejeter la faute sur quelqu'un d'autre"," "," "," "," "," "]
[null,null,null,null,null,null,null,null,null,null,"You want to change the offer you did to a driver, how can you do that? ","You have to cancel the offer and make a new one, costing you another $500.000","You can't do anything but wait until next staff decision","You can modify the offer for an additional $300.000","You need a technical director to do so "," "," "," "," "," ","Vous voulez changer l'offre que vous avez faite à un pilote, comment pouvez-vous faire ?","Vous devez annuler l'offre et en faire une nouvelle, ce qui vous coûtera 500 000 $ de plus","Vous ne pouvez rien faire excepté attendre la prochaine décision du personnel","Vous pouvez modifier l'offre pour 300 000 $ supplémentaires","Vous avez besoin d'un directeur technique pour faire cela"," "," "," "," "," "]